[Event "Chess Festival Groningen 2023 | A"]
[Site "Groningen, Netherlands"]
[Date "2023.12.29"]
[Round "8.23"]
[White "Kanyamarala, Trisha"]
[Black "Grooten, Herman"]
[Result "1-0"]
[TimeControl "90min/40moves + 30min + 30sec/move"]
[WhiteElo "2184"]
[BlackElo "2243"]

1. d4 {[%clk 01:30:52]} Nf6 {[%clk 01:30:54]} 2. c4 {[%clk 01:31:07]} {[%emt
00:00:09]} e6 {[%clk 01:31:17]} 3. Nf3 {[%clk 01:31:30]} b6 {[%clk 01:31:40]} 4.
g3 {[%clk 01:31:43]} {[%emt 00:00:37]} Ba6 {[%clk 01:31:56]} {[%emt 00:00:13]}
5. b3 {[%clk 01:31:47]} {[%emt 00:00:28]} Bb4+ {[%clk 01:32:10]} 6. Bd2 {[%clk
01:32:02]} {[%emt 00:00:05]} Be7 {[%clk 01:32:30]} {[%emt 00:00:43]} 7. Nc3
{[%clk 01:32:23]} Bb7 {[%clk 01:31:32]} {[%emt 00:01:26]} 8. Bg2 {[%clk
01:32:02]} {[%emt 00:01:07]} O-O {[%clk 01:31:29]} {[%emt 00:00:10]} 9. O-O
{[%clk 01:29:39]} {[%emt 00:02:37]} d5 {[%clk 01:29:59]} {[%emt 00:02:00]} 10.
cxd5 {[%clk 01:29:13]} {[%emt 00:00:59]} exd5 {[%clk 01:30:11]} {[%emt
00:00:54]} 11. Qc2 {[%clk 01:28:40]} {[%emt 00:00:25]} Nbd7 {[%clk 01:29:34]}
{[%emt 00:01:40]} 12. Rad1 {[%clk 01:27:24]} {[%emt 00:01:14]} Re8 {[%clk
01:28:34]} {[%emt 00:01:28]} 13. Ne5 {[%clk 01:24:54]} {[%emt 00:03:00]} Nf8
{[%clk 01:23:35]} {[%emt 00:05:34]} 14. Rfe1 {[%clk 01:20:51]} {[%emt
00:04:27]} Ne6 {[%clk 01:18:52]} {[%emt 00:05:13]} 15. e3 {[%clk 01:13:46]}
{[%emt 00:08:23]} a6 {[%clk 01:18:15]} {[%emt 00:00:42]} 16. Bc1 {[%clk
01:11:56]} {[%emt 00:01:57]} Qd6 {[%clk 01:10:10]} {[%emt 00:08:35]} 17. f4
{[%clk 01:03:17]} {[%emt 00:09:06]} c5 {[%clk 01:01:03]} {[%emt 00:09:39]} 18.
dxc5 {[%clk 00:58:01]} {[%emt 00:05:46]} Qxc5 {[%clk 00:58:15]} {[%emt
00:03:17]} 19. Qd3 {[%clk 00:55:03]} {[%emt 00:03:30]} Red8 {[%clk 00:53:35]}
{[%emt 00:05:38]} 20. Bb2 {[%clk 00:53:35]} {[%emt 00:01:29]} Qa5 {[%clk
00:49:57]} {[%emt 00:04:40]} 21. a3 {[%clk 00:42:06]} {[%emt 00:11:28]} b5
{[%clk 00:48:22]} {[%emt 00:02:32]} 22. b4 {[%clk 00:40:20]} {[%emt 00:02:01]}
Qb6 {[%clk 00:48:00]} {[%emt 00:00:39]} 23. Ne2 {[%clk 00:39:33]} {[%emt
00:01:18]} a5 {[%clk 00:43:30]} {[%emt 00:05:01]} 24. f5 {[%clk 00:29:13]}
{[%emt 00:11:18]} Ng5 {[%clk 00:40:57]} {[%emt 00:02:34]} 25. Bd4 {[%clk
00:29:28]} {[%emt 00:00:37]} Qa6 {[%clk 00:38:17]} {[%emt 00:02:48]} 26. Ra1
{[%clk 00:26:52]} {[%emt 00:03:05]} Nge4 {[%clk 00:36:51]} {[%emt 00:01:56]} 27.
Nf4 {[%clk 00:25:07]} {[%emt 00:02:14]} Nd6 {[%clk 00:33:19]} {[%emt 00:04:03]}
28. Bf3 {[%clk 00:22:56]} {[%emt 00:03:04]} Nfe4 {[%clk 00:29:58]} {[%emt
00:03:30]} 29. Bg4 {[%clk 00:22:24]} {[%emt 00:01:00]} Nc4 {[%clk 00:29:05]}
{[%emt 00:01:24]} 30. Nh5 {[%clk 00:17:30]} {[%emt 00:05:48]} Qd6 {[%clk
00:23:54]} {[%emt 00:05:21]} 31. Nf3 {[%clk 00:15:55]} {[%emt 00:02:01]} f6
{[%clk 00:23:32]} {[%emt 00:00:51]} 32. Nf4 {[%clk 00:10:42]} {[%emt 00:06:25]}
Ne5 {[%clk 00:16:29]} {[%emt 00:06:52]} 33. Nxe5 {[%clk 00:09:56]} {[%emt
00:01:15]} fxe5 {[%clk 00:16:51]} {[%emt 00:00:32]} 34. Bc5 {[%clk 00:10:18]}
{[%emt 00:00:07]} Nxc5 {[%clk 00:14:56]} {[%emt 00:02:36]} 35. bxc5 {[%clk
00:10:41]} Qc6 {[%clk 00:14:36]} {[%emt 00:00:23]} 36. Ne6 {[%clk 00:10:38]}
{[%emt 00:00:33]} Re8 {[%clk 00:12:50]} {[%emt 00:02:16]} 37. Rab1 {[%clk
00:09:38]} {[%emt 00:01:32]} d4 {[%clk 00:11:28]} {[%emt 00:02:21]} 38. e4
{[%clk 00:09:28]} {[%emt 00:00:09]} Ba6 {[%clk 00:10:49]} {[%emt 00:01:10]} 39.
Qb3 {[%clk 00:09:04]} {[%emt 00:01:05]} Kh8 {[%clk 00:10:54]} {[%emt 00:00:13]}
40. Qd5 {[%clk 00:06:26]} {[%emt 00:03:48]} Rec8 {[%clk 00:10:28]} {[%emt
00:00:15]} 41. Qxe5 {[%clk 00:05:33]} {[%emt 00:01:41]} Bf6 {[%clk 00:10:01]}
{[%emt 00:00:40]} 42. Qf4 {[%clk 00:00:50]} {[%emt 00:05:17]} Bb7 {[%clk
00:05:46]} {[%emt 00:04:39]} 43. Bf3 {[%clk 00:29:19]} {[%emt 00:02:01]} d3
{[%clk 00:34:39]} {[%emt 00:02:06]} 44. Rf1 {[%clk 00:26:35]} {[%emt 00:02:45]}
Bc3 {[%clk 00:28:52]} {[%emt 00:06:18]} 45. e5 {[%clk 00:24:47]} {[%emt
00:02:35]} Qd7 {[%clk 00:29:02]} {[%emt 00:00:06]} 46. Bxb7 {[%clk 00:22:59]}
{[%emt 00:02:14]} Qxb7 {[%clk 00:28:09]} {[%emt 00:01:45]} 47. f6 {[%clk
00:22:53]} {[%emt 00:00:28]} g5 {[%clk 00:26:18]} {[%emt 00:02:07]} 48. Qxg5
{[%clk 00:21:40]} {[%emt 00:01:47]} Rg8 {[%clk 00:26:02]} {[%emt 00:01:10]} 49.
Qg7+ {[%clk 00:17:21]} {[%emt 00:04:54]} Rxg7 {[%clk 00:26:26]} 50. fxg7+
{[%clk 00:17:47]} Qxg7 {[%clk 00:26:29]} {[%emt 00:00:11]} 51. Nxg7 {[%clk
00:18:11]} Kxg7 {[%clk 00:24:26]} {[%emt 00:02:32]} 52. Rxb5 {[%clk 00:18:09]}
{[%emt 00:00:31]} Bxe5 {[%clk 00:24:50]} {[%emt 00:00:38]} 53. Rd1 {[%clk
00:18:07]} {[%emt 00:00:12]} Rd8 {[%clk 00:24:35]} {[%emt 00:00:33]} 54. c6
{[%clk 00:17:56]} {[%emt 00:00:41]} Kf6 {[%clk 00:24:48]} {[%emt 00:00:16]} 55.
Rb7 {[%clk 00:09:35]} {[%emt 00:08:56]} d2 {[%clk 00:22:33]} {[%emt 00:02:39]}
56. c7 {[%clk 00:08:59]} {[%emt 00:01:07]} Rc8 {[%clk 00:22:36]} {[%emt
00:00:27]} 57. Rxd2 {[%clk 00:09:14]} {[%emt 00:00:46]} Ke6 {[%clk 00:22:36]}
{[%emt 00:00:09]} 58. Rd8 {[%clk 00:04:02]} {[%emt 00:05:35]} Rxc7 {[%clk
00:22:41]} {[%emt 00:00:24]} 59. Rxc7 {[%clk 00:04:06]} {[%emt 00:00:31]} Bxc7
{[%clk 00:23:08]} {[%emt 00:00:04]} 60. Rh8 {[%clk 00:04:32]} Kd5 {[%clk
00:23:25]} {[%emt 00:00:15]} 61. Rxh7 {[%clk 00:04:40]} {[%emt 00:00:16]} Bb6+
{[%clk 00:23:49]} {[%emt 00:00:36]} 62. Kf1 {[%clk 00:05:04]} Kc4 {[%clk
00:24:10]} {[%emt 00:00:08]} 63. a4 {[%clk 00:04:55]} {[%emt 00:00:19]} Bd8
{[%clk 00:23:43]} {[%emt 00:00:54]} 64. Rb7 {[%clk 00:04:56]} {[%emt 00:00:33]}
Bf6 {[%clk 00:24:00]} {[%emt 00:01:05]} 65. h4 {[%emt 00:00:10]} Kd5 {[%emt
00:00:09]} 1-0

[Event "Chess Festival Groningen 2023 | A"]
[Site "Groningen, Netherlands"]
[Date "2023.12.29"]
[Round "8.24"]
[White "Ritzerveld, Noah"]
[Black "Labruyere, Roger"]
[Result "0-1"]
[TimeControl "90min/40moves + 30min + 30sec/move"]
[WhiteElo "1997"]
[BlackElo "2208"]

1. e4 {[%clk 01:30:58]} {[%emt 00:00:31]} c5 {[%clk 01:30:56]} 2. Nf3 {[%clk
01:31:22]} {[%emt 00:00:09]} d6 {[%clk 01:31:24]} 3. d4 {[%clk 01:31:45]} cxd4
{[%clk 01:31:52]} 4. Nxd4 {[%clk 01:32:08]} Nf6 {[%clk 01:32:19]} {[%emt
00:00:04]} 5. Nc3 {[%clk 01:32:26]} {[%emt 00:00:14]} a6 {[%clk 01:32:46]} 6.
h3 {[%clk 01:32:06]} {[%emt 00:01:10]} e6 {[%clk 01:32:42]} {[%emt 00:00:12]} 7.
g4 {[%clk 01:32:26]} {[%emt 00:00:05]} h6 {[%clk 01:33:07]} {[%emt 00:00:04]} 8.
Bg2 {[%clk 01:30:56]} {[%emt 00:02:27]} Be7 {[%clk 01:32:32]} {[%emt 00:00:36]}
9. Be3 {[%clk 01:30:12]} {[%emt 00:01:15]} Bd7 {[%clk 01:32:51]} {[%emt
00:00:13]} 10. O-O {[%clk 01:26:24]} {[%emt 00:04:49]} O-O {[%clk 01:31:50]}
{[%emt 00:00:56]} 11. f4 {[%clk 01:22:03]} {[%emt 00:04:51]} Nc6 {[%clk
01:31:52]} {[%emt 00:00:30]} 12. Qd2 {[%clk 01:19:12]} {[%emt 00:03:18]} Nxd4
{[%clk 01:28:05]} {[%emt 00:04:19]} 13. Qxd4 {[%clk 01:16:05]} {[%emt
00:03:33]} Bc6 {[%clk 01:27:34]} {[%emt 00:01:02]} 14. Rad1 {[%clk 01:15:16]}
{[%emt 00:01:19]} Qa5 {[%clk 01:25:26]} {[%emt 00:02:39]} 15. Qd2 {[%clk
01:14:03]} {[%emt 00:01:43]} Qc7 {[%clk 01:24:31]} {[%emt 00:01:25]} 16. Qf2
{[%clk 01:06:23]} {[%emt 00:08:14]} b5 {[%clk 01:19:32]} {[%emt 00:05:25]} 17.
a3 {[%clk 01:04:46]} {[%emt 00:02:12]} Qb7 {[%clk 01:19:04]} {[%emt 00:00:53]}
18. Qf3 {[%clk 00:50:53]} {[%emt 00:14:23]} a5 {[%clk 01:18:10]} {[%emt
00:01:25]} 19. g5 {[%clk 00:47:06]} {[%emt 00:04:22]} hxg5 {[%clk 01:18:36]}
{[%emt 00:00:04]} 20. fxg5 {[%clk 00:47:31]} {[%emt 00:00:13]} Nd7 {[%clk
01:16:20]} {[%emt 00:03:03]} 21. Qh5 {[%clk 00:44:31]} {[%emt 00:02:57]} Ne5
{[%clk 01:10:21]} {[%emt 00:06:29]} 22. Bd4 {[%clk 00:38:47]} {[%emt 00:06:15]}
b4 {[%clk 01:04:20]} {[%emt 00:06:34]} 23. Rf4 {[%clk 00:27:03]} {[%emt
00:12:16]} Ng6 {[%clk 00:58:02]} {[%emt 00:06:44]} 24. Bxg7 {[%clk 00:27:19]}
{[%emt 00:00:55]} Kxg7 {[%clk 00:58:29]} 25. Qh6+ {[%clk 00:27:41]} Kg8 {[%clk
00:58:58]} 26. Rf6 {[%clk 00:27:50]} Be8 {[%clk 00:55:03]} {[%emt 00:04:38]} 27.
Ne2 {[%clk 00:21:49]} {[%emt 00:06:10]} Qb6+ {[%clk 00:51:40]} {[%emt
00:04:31]} 28. Rd4 {[%clk 00:15:01]} {[%emt 00:06:40]} Qc5 {[%clk 00:49:07]}
{[%emt 00:03:05]} 29. e5 {[%clk 00:13:14]} {[%emt 00:02:15]} Qxe5 {[%clk
00:46:43]} {[%emt 00:02:53]} 30. Re4 {[%clk 00:08:17]} {[%emt 00:05:28]} Qxb2
{[%clk 00:40:57]} {[%emt 00:06:14]} 31. c3 {[%clk 00:06:01]} {[%emt 00:03:14]}
d5 {[%clk 00:27:53]} {[%emt 00:13:08]} 32. Rexe6 {[%clk 00:04:02]} {[%emt
00:02:48]} Qb1+ {[%clk 00:28:01]} {[%emt 00:00:08]} 33. Rf1 {[%clk 00:04:26]}
{[%emt 00:00:04]} Qxf1+ {[%clk 00:28:28]} {[%emt 00:00:04]} 34. Bxf1 {[%clk
00:04:42]} {[%emt 00:00:09]} fxe6 {[%clk 00:28:56]} {[%emt 00:00:16]} 35. Nd4
{[%clk 00:04:22]} {[%emt 00:00:35]} bxa3 {[%clk 00:27:02]} {[%emt 00:02:58]} 36.
Nxe6 {[%clk 00:03:38]} {[%emt 00:00:54]} Bc5+ {[%clk 00:27:29]} 37. Kg2 {[%clk
00:02:50]} {[%emt 00:01:10]} Ra7 {[%clk 00:27:36]} {[%emt 00:00:41]} 38. Nxf8
{[%clk 00:01:38]} {[%emt 00:01:21]} Bxf8 {[%clk 00:28:00]} {[%emt 00:00:47]}
0-1

[Event "Chess Festival Groningen 2023 | A"]
[Site "Groningen, Netherlands"]
[Date "2023.12.29"]
[Round "8.25"]
[White "Nicolai, Amir"]
[Black "Adamovics, Aleksejs"]
[Result "0-1"]
[TimeControl "90min/40moves + 30min + 30sec/move"]
[WhiteElo "2156"]
[BlackElo "2015"]

1. e4 {[%clk 01:30:56]} c5 {[%clk 01:30:52]} 2. Nf3 {[%clk 01:31:21]} {[%emt
00:00:04]} Nc6 {[%clk 01:31:13]} 3. Bb5 {[%clk 01:31:46]} e6 {[%clk 01:31:34]}
{[%emt 00:00:15]} 4. Bxc6 {[%clk 01:32:09]} {[%emt 00:00:04]} bxc6 {[%clk
01:32:00]} {[%emt 00:00:05]} 5. d3 {[%clk 01:32:31]} {[%emt 00:00:05]} Ne7
{[%clk 01:32:13]} {[%emt 00:00:24]} 6. Nbd2 {[%clk 01:32:54]} {[%emt 00:00:05]}
Ng6 {[%clk 01:29:11]} {[%emt 00:03:24]} 7. h4 {[%clk 01:29:59]} {[%emt
00:03:24]} h5 {[%clk 01:29:25]} {[%emt 00:00:38]} 8. e5 {[%clk 01:29:33]}
{[%emt 00:00:35]} Be7 {[%clk 01:28:14]} {[%emt 00:01:48]} 9. Qe2 {[%clk
01:24:53]} {[%emt 00:05:03]} f6 {[%clk 01:24:54]} {[%emt 00:03:52]} 10. Qe4
{[%clk 01:23:27]} {[%emt 00:01:55]} Kf7 {[%clk 01:23:50]} {[%emt 00:01:34]} 11.
Nc4 {[%clk 00:57:15]} {[%emt 00:26:51]} Ba6 {[%clk 01:15:31]} {[%emt 00:08:43]}
12. Bd2 {[%clk 00:30:12]} {[%emt 00:27:29]} Bxc4 {[%clk 01:05:55]} {[%emt
00:10:05]} 13. dxc4 {[%clk 00:30:39]} {[%emt 00:00:08]} Qc7 {[%clk 01:04:59]}
{[%emt 00:01:22]} 14. Bc3 {[%clk 00:29:57]} {[%emt 00:01:12]} d5 {[%clk
00:59:40]} {[%emt 00:05:50]} 15. exd6 {[%clk 00:28:47]} {[%emt 00:01:38]} Qxd6
{[%clk 00:56:50]} {[%emt 00:03:21]} 16. Bd2 {[%clk 00:23:17]} {[%emt 00:06:12]}
e5 {[%clk 00:39:13]} {[%emt 00:17:56]} 17. O-O-O {[%clk 00:22:17]} {[%emt
00:01:58]} Qe6 {[%clk 00:38:50]} {[%emt 00:00:45]} 18. g3 {[%clk 00:21:17]}
{[%emt 00:01:08]} Rab8 {[%clk 00:31:30]} {[%emt 00:07:50]} 19. Rhe1 {[%clk
00:19:33]} {[%emt 00:02:30]} Rhd8 {[%clk 00:29:17]} {[%emt 00:02:27]} 20. Ba5
{[%clk 00:18:56]} {[%emt 00:01:05]} Rxd1+ {[%clk 00:29:07]} {[%emt 00:00:44]}
21. Rxd1 {[%clk 00:19:21]} {[%emt 00:00:05]} Rb7 {[%clk 00:28:54]} {[%emt
00:00:39]} 22. Qe2 {[%clk 00:13:21]} {[%emt 00:06:31]} Nf8 {[%clk 00:22:31]}
{[%emt 00:06:56]} 23. Nd2 {[%clk 00:11:53]} {[%emt 00:02:29]} g6 {[%clk
00:22:48]} 24. Bc3 {[%clk 00:10:45]} {[%emt 00:01:15]} Rd7 {[%clk 00:20:50]}
{[%emt 00:02:29]} 25. Re1 {[%clk 00:10:25]} {[%emt 00:00:50]} Qf5 {[%clk
00:18:25]} {[%emt 00:03:02]} 26. f3 {[%clk 00:09:23]} {[%emt 00:01:57]} Ne6
{[%clk 00:17:58]} {[%emt 00:01:00]} 27. Qe4 {[%clk 00:05:20]} {[%emt 00:03:58]}
Nd4 {[%clk 00:16:10]} {[%emt 00:02:19]} 28. Bxd4 {[%clk 00:02:41]} {[%emt
00:03:08]} Qxe4 {[%clk 00:16:29]} {[%emt 00:00:15]} 29. Nxe4 {[%clk 00:01:57]}
{[%emt 00:01:10]} cxd4 {[%clk 00:16:47]} {[%emt 00:00:39]} 30. Rd1 {[%clk
00:01:31]} {[%emt 00:00:29]} Ke6 {[%clk 00:15:19]} {[%emt 00:01:57]} 31. Kd2
{[%clk 00:01:38]} {[%emt 00:00:23]} f5 {[%clk 00:13:42]} {[%emt 00:02:11]} 32.
Nf2 {[%clk 00:01:37]} {[%emt 00:00:40]} c5 {[%clk 00:12:57]} {[%emt 00:01:04]}
33. Rh1 {[%clk 00:01:11]} {[%emt 00:01:26]} Bd6 {[%clk 00:12:09]} {[%emt
00:01:24]} 34. Rg1 {[%clk 00:00:37]} {[%emt 00:00:25]} Be7 {[%clk 00:10:22]}
{[%emt 00:02:36]} 35. a3 {[%clk 00:00:40]} {[%emt 00:00:10]} g5 {[%clk
00:09:16]} {[%emt 00:01:57]} 36. hxg5 {[%clk 00:00:54]} {[%emt 00:00:10]} Bxg5+
{[%clk 00:09:43]} 37. Ke2 {[%clk 00:00:48]} {[%emt 00:00:24]} Kf6 {[%clk
00:08:33]} {[%emt 00:01:40]} 38. b4 {[%clk 00:00:39]} {[%emt 00:00:39]} Be3
{[%clk 00:07:46]} {[%emt 00:01:16]} 39. Rb1 {[%clk 00:00:33]} {[%emt 00:00:40]}
Bxf2 {[%clk 00:04:20]} {[%emt 00:03:55]} 40. Kxf2 {[%clk 00:00:58]} {[%emt
00:00:11]} Rb7 {[%clk 00:02:01]} {[%emt 00:02:56]} 41. b5 {[%clk 00:28:23]}
{[%emt 00:02:51]} e4 {[%clk 00:23:16]} {[%emt 00:09:12]} 42. Rh1 {[%clk
00:23:33]} {[%emt 00:05:19]} Kg6 {[%clk 00:21:35]} {[%emt 00:02:11]} 43. a4
{[%clk 00:22:20]} {[%emt 00:02:04]} a5 {[%clk 00:18:54]} {[%emt 00:02:51]} 44.
c3 {[%clk 00:22:05]} {[%emt 00:00:55]} dxc3 {[%clk 00:15:27]} {[%emt 00:04:20]}
45. Rc1 {[%clk 00:19:42]} {[%emt 00:02:25]} Kf6 {[%clk 00:14:25]} {[%emt
00:01:48]} 46. Rxc3 {[%clk 00:12:22]} {[%emt 00:07:28]} Ke5 {[%clk 00:13:30]}
{[%emt 00:01:25]} 47. Rc1 {[%clk 00:10:02]} {[%emt 00:02:59]} Kd4 {[%clk
00:11:10]} {[%emt 00:02:42]} 48. Rh1 {[%clk 00:10:11]} {[%emt 00:00:22]} Rh7
{[%clk 00:10:12]} {[%emt 00:01:25]} 49. Rh4 {[%clk 00:07:28]} {[%emt 00:03:12]}
Kd3 {[%clk 00:09:54]} {[%emt 00:00:50]} 50. fxe4 {[%clk 00:02:35]} {[%emt
00:05:20]} fxe4 {[%clk 00:10:19]} {[%emt 00:00:09]} 51. g4 {[%clk 00:01:53]}
{[%emt 00:01:08]} Kd2 {[%clk 00:09:53]} {[%emt 00:00:59]} 52. gxh5 {[%clk
00:02:04]} {[%emt 00:00:38]} e3 {[%clk 00:09:29]} {[%emt 00:00:34]} 53. Kf3
{[%clk 00:02:09]} {[%emt 00:00:25]} e2 {[%clk 00:08:19]} {[%emt 00:01:38]} 54.
Rh2 {[%clk 00:00:51]} {[%emt 00:01:48]} Kd3 {[%clk 00:06:47]} {[%emt 00:02:02]}
55. Rxe2 {[%clk 00:00:44]} {[%emt 00:00:37]} Rf7 {[%clk 00:07:15]} {[%emt
00:00:12]} 56. Kg4 {[%clk 00:01:04]} {[%emt 00:00:04]} Kxe2 {[%clk 00:07:22]}
{[%emt 00:00:19]} 57. Kg5 {[%clk 00:01:33]} {[%emt 00:00:32]} Kd3 {[%clk
00:07:26]} {[%emt 00:00:09]} 58. Kg6 {[%clk 00:02:01]} Rb7 {[%clk 00:06:51]}
{[%emt 00:00:52]} 59. h6 {[%clk 00:02:11]} {[%emt 00:00:57]} Kxc4 {[%clk
00:07:17]} 60. h7 {[%clk 00:02:33]} Rxh7 {[%clk 00:07:32]} {[%emt 00:00:10]} 61.
Kxh7 {[%clk 00:03:01]} Kd5 {[%clk 00:07:56]} 0-1